[Event "Titled Tuesday Blitz May 9 Early 2023"]
[White "Kim, Sergey"]
[Black "Mouhamad, Joachim"]
[WhiteFideId "13700570"]
[BlackFideId "656410"]
[WhiteElo "2594"]
[BlackElo "2125"]
[Result "0-1"]
[Round "07"]
[TimeControl "180+2"]
[Date "2023.05.09"]
[WhiteClock "0:00:00"]
[BlackClock "0:00:02"]

1. d4 {[%clk 0:03:00]}  d5 {[%clk 0:02:59]} 2. c4 {[%clk 0:03:01]}  e6 {[%clk 0:03:00]} 3. Nc3 {[%clk 0:03:01]}  a6 {[%clk 0:02:58]} 4. e3 {[%clk 0:03:00]}  Nf6 {[%clk 0:02:46]} 5. Nf3 {[%clk 0:03:00]}  b6 {[%clk 0:02:26]} 6. a3 {[%clk 0:03:00]}  Bb7 {[%clk 0:02:25]} 7. Bd3 {[%clk 0:03:00]}  Bd6 {[%clk 0:02:22]} 8. cxd5 {[%clk 0:02:58]}  exd5 {[%clk 0:02:21]} 9. Ne5 {[%clk 0:02:55]}  O-O {[%clk 0:02:19]} 10. O-O {[%clk 0:02:53]}  c5 {[%clk 0:02:09]} 11. f4 {[%clk 0:02:52]}  Nc6 {[%clk 0:02:05]} 12. Bf5 {[%clk 0:02:46]}  cxd4 {[%clk 0:02:01]} 13. Nxc6 {[%clk 0:02:46]}  Bxc6 {[%clk 0:01:58]} 14. exd4 {[%clk 0:02:46]}  Re8 {[%clk 0:01:49]} 15. Qf3 {[%clk 0:02:31]}  Ne4 {[%clk 0:01:46]} 16. Qh3 {[%clk 0:02:19]}  g6 {[%clk 0:01:39]} 17. Bxe4 {[%clk 0:02:19]}  dxe4 {[%clk 0:01:38]} 18. Be3 {[%clk 0:02:01]}  Qd7 {[%clk 0:01:13]} 19. f5 {[%clk 0:02:00]}  Bf8 {[%clk 0:01:04]} 20. d5 {[%clk 0:01:49]}  Bb5 {[%clk 0:01:02]} 21. fxg6 {[%clk 0:00:55]}  hxg6 {[%clk 0:00:59]} 22. Qxd7 {[%clk 0:00:47]}  Bxd7 {[%clk 0:01:00]} 23. Rfd1 {[%clk 0:00:45]}  b5 {[%clk 0:00:52]} 24. d6 {[%clk 0:00:39]}  Bg7 {[%clk 0:00:36]} 25. Rab1 {[%clk 0:00:33]}  Rad8 {[%clk 0:00:24]} 26. Nd5 {[%clk 0:00:32]}  Be5 {[%clk 0:00:18]} 27. Bg5 {[%clk 0:00:24]}  Rb8 {[%clk 0:00:13]} 28. Ne7+ {[%clk 0:00:18]}  Kg7 {[%clk 0:00:14]} 29. Rd5 {[%clk 0:00:17]}  f6 {[%clk 0:00:13]} 30. Be3 {[%clk 0:00:16]}  Be6 {[%clk 0:00:07]} 31. Rd2 {[%clk 0:00:15]}  Rbd8 {[%clk 0:00:06]} 32. Rbd1 {[%clk 0:00:11]}  Bxd6 {[%clk 0:00:05]} 33. Rxd6 {[%clk 0:00:10]}  Rxd6 {[%clk 0:00:06]} 34. Rxd6 {[%clk 0:00:11]}  Rxe7 {[%clk 0:00:07]} 35. Rxa6 {[%clk 0:00:11]}  Kf7 {[%clk 0:00:03]} 36. h4 {[%clk 0:00:11]}  Bc4 {[%clk 0:00:02]} 37. Rb6 {[%clk 0:00:10]}  Re6 {[%clk 0:00:02]} 38. Rb7+ {[%clk 0:00:09]}  Ke8 {[%clk 0:00:02]} 39. Kf2 {[%clk 0:00:08]}  Rd6 {[%clk 0:00:02]} 40. Kg3 {[%clk 0:00:08]}  Rd7 {[%clk 0:00:02]} 41. Rb6 {[%clk 0:00:08]}  Kf7 {[%clk 0:00:03]} 42. Kf4 {[%clk 0:00:08]}  Rd5 {[%clk 0:00:02]} 43. g4 {[%clk 0:00:07]}  f5 {[%clk 0:00:02]} 44. g5 {[%clk 0:00:08]}  Rd7 {[%clk 0:00:01]} 45. Rf6+ {[%clk 0:00:07]}  Kg7 {[%clk 0:00:01]} 46. Ke5 {[%clk 0:00:07]}  Bf7 {[%clk 0:00:01]} 47. Kf4 {[%clk 0:00:06]}  Re7 {[%clk 0:00:01]} 48. Rb6 {[%clk 0:00:06]}  Rd7 {[%clk 0:00:02]} 49. Rxb5 {[%clk 0:00:05]}  Rd3 {[%clk 0:00:02]} 50. Rb6 {[%clk 0:00:04]}  Rd1 {[%clk 0:00:02]} 51. h5 {[%clk 0:00:04]}  Rf1+ {[%clk 0:00:03]} 52. Ke5 {[%clk 0:00:05]}  gxh5 {[%clk 0:00:03]} 53. Bd4 {[%clk 0:00:05]}  Kf8 {[%clk 0:00:02]} 54. g6 {[%clk 0:00:05]}  Bxg6 {[%clk 0:00:02]} 55. Rxg6 {[%clk 0:00:04]}  h4 {[%clk 0:00:02]} 56. Rh6 {[%clk 0:00:04]}  Rf3 {[%clk 0:00:02]} 57. Rxh4 {[%clk 0:00:03]}  e3 {[%clk 0:00:02]} 58. Rf4 {[%clk 0:00:02]}  e2 {[%clk 0:00:01]} 59. Bc3 {[%clk 0:00:01]}  Re3+ {[%clk 0:00:01]} 60. Kxf5 {[%clk 0:00:01]}  e1=Q {[%clk 0:00:01]} 61. Bxe1 {[%clk 0:00:01]}  Rxe1 {[%clk 0:00:02]} 62. Re4 {[%clk 0:00:00]}  Rb1 {[%clk 0:00:02]} 0-1


[Site "https://www.chess.com"]

[Event "Titled Tuesday Blitz May 9 Early 2023"]
[White "Reprintsev, Alexander"]
[Black "Gomes, Luiz Alexandre de Souza"]
[WhiteFideId "14100541"]
[BlackFideId "2102790"]
[WhiteElo "2218"]
[BlackElo "2393"]
[Result "0-1"]
[Round "07"]
[TimeControl "180+2"]
[Date "2023.05.09"]
[WhiteClock "0:00:00"]
[BlackClock "0:00:48"]

1. e4 {[%clk 0:02:47]}  c5 {[%clk 0:02:58]} 2. b3 {[%clk 0:02:42]}  Nc6 {[%clk 0:02:57]} 3. Bb2 {[%clk 0:02:36]}  a6 {[%clk 0:02:57]} 4. Nf3 {[%clk 0:02:16]}  d6 {[%clk 0:02:57]} 5. d4 {[%clk 0:02:13]}  cxd4 {[%clk 0:02:57]} 6. Nxd4 {[%clk 0:02:08]}  Bd7 {[%clk 0:02:57]} 7. Be2 {[%clk 0:02:07]}  Nf6 {[%clk 0:02:56]} 8. Nc3 {[%clk 0:02:05]}  e6 {[%clk 0:02:56]} 9. Qd2 {[%clk 0:01:53]}  Be7 {[%clk 0:02:56]} 10. O-O-O {[%clk 0:01:53]}  Qc7 {[%clk 0:02:55]} 11. g4 {[%clk 0:01:51]}  h6 {[%clk 0:02:55]} 12. f4 {[%clk 0:01:47]}  Rc8 {[%clk 0:02:48]} 13. g5 {[%clk 0:01:43]}  hxg5 {[%clk 0:02:48]} 14. fxg5 {[%clk 0:01:43]}  Nh5 {[%clk 0:02:47]} 15. Bxh5 {[%clk 0:01:33]}  Rxh5 {[%clk 0:02:47]} 16. g6 {[%clk 0:01:34]}  Ne5 {[%clk 0:02:37]} 17. gxf7+ {[%clk 0:01:33]}  Nxf7 {[%clk 0:02:35]} 18. Kb1 {[%clk 0:01:33]}  b5 {[%clk 0:02:33]} 19. Rhg1 {[%clk 0:01:27]}  b4 {[%clk 0:02:28]} 20. Nce2 {[%clk 0:01:01]}  e5 {[%clk 0:02:25]} 21. Nf5 {[%clk 0:00:58]}  Bxf5 {[%clk 0:02:21]} 22. exf5 {[%clk 0:00:58]}  Rxh2 {[%clk 0:02:16]} 23. Rxg7 {[%clk 0:00:54]}  Bf6 {[%clk 0:01:58]} 24. Rg8+ {[%clk 0:00:53]}  Ke7 {[%clk 0:01:58]} 25. Rxc8 {[%clk 0:00:53]}  Qxc8 {[%clk 0:01:59]} 26. Qd3 {[%clk 0:00:37]}  Qc5 {[%clk 0:01:46]} 27. Nc1 {[%clk 0:00:36]}  a5 {[%clk 0:01:24]} 28. c4 {[%clk 0:00:34]}  bxc3 {[%clk 0:01:23]} 29. Bxc3 {[%clk 0:00:33]}  Ng5 {[%clk 0:01:17]} 30. Rd2 {[%clk 0:00:19]}  Rxd2 {[%clk 0:01:12]} 31. Qxd2 {[%clk 0:00:17]}  Ne4 {[%clk 0:01:12]} 32. Qh6 {[%clk 0:00:09]}  Nxc3+ {[%clk 0:01:07]} 33. Kb2 {[%clk 0:00:10]}  Nd5 {[%clk 0:00:58]} 34. Qh7+ {[%clk 0:00:07]}  Kd8 {[%clk 0:00:58]} 35. Qg8+ {[%clk 0:00:07]}  Kc7 {[%clk 0:00:58]} 36. Qf7+ {[%clk 0:00:02]}  Kb6 {[%clk 0:00:56]} 37. Ne2 {[%clk 0:00:03]}  e4+ {[%clk 0:00:54]} 38. Kb1 {[%clk 0:00:00]}  Nc3+ {[%clk 0:00:48]} 0-1


[Site "https://www.chess.com"]

[Event "Titled Tuesday Blitz May 9 Early 2023"]
[White "ArtemDyachuk"]
[Black "micke12a"]
[WhiteElo "2530"]
[BlackElo "2381"]
[Result "1-0"]
[Round "07"]
[TimeControl "180+2"]
[Date "2023.05.09"]
[WhiteClock "0:00:02"]
[BlackClock "0:00:08"]

1. c4 {[%clk 0:03:00]}  Nf6 {[%clk 0:02:57]} 2. Nc3 {[%clk 0:03:00]}  e6 {[%clk 0:02:56]} 3. e4 {[%clk 0:02:51]}  d5 {[%clk 0:02:57]} 4. e5 {[%clk 0:02:51]}  d4 {[%clk 0:02:56]} 5. exf6 {[%clk 0:02:49]}  dxc3 {[%clk 0:02:57]} 6. bxc3 {[%clk 0:02:49]}  Qxf6 {[%clk 0:02:57]} 7. Nf3 {[%clk 0:02:47]}  e5 {[%clk 0:02:51]} 8. d4 {[%clk 0:02:45]}  Nc6 {[%clk 0:02:51]} 9. Be2 {[%clk 0:02:44]}  Bd6 {[%clk 0:02:42]} 10. c5 {[%clk 0:02:34]}  Be7 {[%clk 0:02:39]} 11. d5 {[%clk 0:02:34]}  Nd8 {[%clk 0:02:33]} 12. Bg5 {[%clk 0:02:34]}  Qg6 {[%clk 0:02:33]} 13. Bxe7 {[%clk 0:02:33]}  Kxe7 {[%clk 0:02:34]} 14. Nxe5 {[%clk 0:02:30]}  Qxg2 {[%clk 0:02:33]} 15. d6+ {[%clk 0:01:46]}  Kf8 {[%clk 0:02:32]} 16. Qd4 {[%clk 0:01:46]}  Qxh1+ {[%clk 0:02:25]} 17. Kd2 {[%clk 0:01:45]}  Qxa1 {[%clk 0:02:20]} 18. dxc7 {[%clk 0:01:45]}  Qb2+ {[%clk 0:01:25]} 19. Ke3 {[%clk 0:01:41]}  Qc1+ {[%clk 0:01:17]} 20. Kf3 {[%clk 0:00:54]}  Bg4+ {[%clk 0:01:05]} 21. Kxg4 {[%clk 0:00:45]}  Ne6 {[%clk 0:01:04]} 22. Nd7+ {[%clk 0:00:09]}  Kg8 {[%clk 0:00:57]} 23. Qe5 {[%clk 0:00:04]}  Qa1 {[%clk 0:00:37]} 24. Nb8 {[%clk 0:00:02]}  Qg1+ {[%clk 0:00:35]} 25. Kh3 {[%clk 0:00:02]}  h6 {[%clk 0:00:06]} 26. c8=Q+ {[%clk 0:00:02]}  Kh7 {[%clk 0:00:07]} 27. Qf5+ {[%clk 0:00:02]}  g6 {[%clk 0:00:06]} 28. Qcxe6 {[%clk 0:00:02]}  gxf5 {[%clk 0:00:06]} 29. Qxf7+ {[%clk 0:00:02]}  Qg7 {[%clk 0:00:06]} 30. Qxf5+ {[%clk 0:00:02]}  Qg6 {[%clk 0:00:07]} 31. Qd7+ {[%clk 0:00:02]}  Qg7 {[%clk 0:00:07]} 32. Bd3+ {[%clk 0:00:02]}  Kg8 {[%clk 0:00:08]} 33. Bc4+ {[%clk 0:00:02]}  Kf8 {[%clk 0:00:08]} 34. Qd8# {[%clk 0:00:02]} 1-0


[Site "https://www.chess.com"]

[Event "Titled Tuesday Blitz May 9 Early 2023"]
[White "Kiseleva, Arina"]
[Black "Shuvalov, Evgenij"]
[WhiteFideId "4164989"]
[BlackFideId "4187237"]
[WhiteElo "1708"]
[BlackElo "2080"]
[Result "1/2-1/2"]
[Round "07"]
[TimeControl "180+2"]
[Date "2023.05.09"]
[WhiteClock "0:00:38"]
[BlackClock "0:00:50"]

1. d4 {[%clk 0:03:00]}  Nf6 {[%clk 0:02:54]} 2. Nf3 {[%clk 0:03:00]}  g6 {[%clk 0:02:53]} 3. c4 {[%clk 0:02:59]}  Bg7 {[%clk 0:02:42]} 4. Nc3 {[%clk 0:02:59]}  d5 {[%clk 0:02:42]} 5. cxd5 {[%clk 0:02:56]}  Nxd5 {[%clk 0:02:43]} 6. Bd2 {[%clk 0:02:55]}  O-O {[%clk 0:02:38]} 7. e4 {[%clk 0:02:54]}  Nxc3 {[%clk 0:02:38]} 8. Bxc3 {[%clk 0:02:54]}  Bg4 {[%clk 0:02:37]} 9. Be2 {[%clk 0:02:50]}  e6 {[%clk 0:02:37]} 10. O-O {[%clk 0:02:46]}  Nc6 {[%clk 0:02:36]} 11. d5 {[%clk 0:02:44]}  exd5 {[%clk 0:02:29]} 12. exd5 {[%clk 0:02:44]}  Bxf3 {[%clk 0:02:27]} 13. Bxf3 {[%clk 0:02:41]}  Ne5 {[%clk 0:02:27]} 14. Bxe5 {[%clk 0:02:15]}  Bxe5 {[%clk 0:02:28]} 15. Qb3 {[%clk 0:02:15]}  Qd6 {[%clk 0:02:24]} 16. g3 {[%clk 0:02:11]}  Qf6 {[%clk 0:02:12]} 17. Bg2 {[%clk 0:01:52]}  Bxb2 {[%clk 0:02:00]} 18. Rab1 {[%clk 0:01:52]}  Bd4 {[%clk 0:01:49]} 19. Qxb7 {[%clk 0:01:48]}  Bb6 {[%clk 0:01:42]} 20. Qc6 {[%clk 0:01:45]}  Qxc6 {[%clk 0:01:34]} 21. dxc6 {[%clk 0:01:45]}  Rad8 {[%clk 0:01:35]} 22. Rfd1 {[%clk 0:01:44]}  Rxd1+ {[%clk 0:01:28]} 23. Rxd1 {[%clk 0:01:43]}  Re8 {[%clk 0:01:28]} 24. Kf1 {[%clk 0:01:41]}  Re5 {[%clk 0:01:26]} 25. f4 {[%clk 0:01:31]}  Ra5 {[%clk 0:01:24]} 26. Bd5 {[%clk 0:01:30]}  Kf8 {[%clk 0:01:21]} 27. Rd2 {[%clk 0:01:21]}  Ra3 {[%clk 0:01:18]} 28. Bb3 {[%clk 0:01:19]}  Ra5 {[%clk 0:01:18]} 29. Rc2 {[%clk 0:01:18]}  Rb5 {[%clk 0:01:09]} 30. Ke2 {[%clk 0:01:15]}  a5 {[%clk 0:01:08]} 31. Kf3 {[%clk 0:01:12]}  Rb4 {[%clk 0:01:07]} 32. Rc4 {[%clk 0:01:09]}  Rxc4 {[%clk 0:01:07]} 33. Bxc4 {[%clk 0:01:09]}  Ke7 {[%clk 0:01:07]} 34. Ke4 {[%clk 0:01:05]}  f6 {[%clk 0:01:06]} 35. g4 {[%clk 0:01:04]}  g5 {[%clk 0:01:03]} 36. fxg5 {[%clk 0:01:00]}  fxg5 {[%clk 0:01:04]} 37. Kf5 {[%clk 0:00:57]}  Be3 {[%clk 0:01:04]} 38. h3 {[%clk 0:00:54]}  Kd6 {[%clk 0:01:00]} 39. Bb5 {[%clk 0:00:49]}  Kc5 {[%clk 0:01:00]} 40. a4 {[%clk 0:00:49]}  Kd6 {[%clk 0:00:57]} 41. Kf6 {[%clk 0:00:47]}  Bf4 {[%clk 0:00:51]} 42. Kg7 {[%clk 0:00:45]}  Bg3 {[%clk 0:00:51]} 43. Kxh7 {[%clk 0:00:45]}  Bh4 {[%clk 0:00:52]} 44. Kg6 {[%clk 0:00:44]}  Ke6 {[%clk 0:00:50]} 45. Bc4+ {[%clk 0:00:42]}  Ke7 {[%clk 0:00:50]} 46. Kf5 {[%clk 0:00:40]}  Kd6 {[%clk 0:00:50]} 47. Bb5 {[%clk 0:00:40]}  Kd5 {[%clk 0:00:49]} 48. Kf6 {[%clk 0:00:38]}  Kd6 {[%clk 0:00:49]} 49. Kf5 {[%clk 0:00:38]}  Kd5 {[%clk 0:00:50]} 50. Kf6 {[%clk 0:00:38]}  Kd6 {[%clk 0:00:50]} 51. Kf5 {[%clk 0:00:38]} 1/2-1/2


[Site "https://www.chess.com"]

[Event "Titled Tuesday Blitz May 9 Early 2023"]
[White "Hinds, Nathan"]
[Black "Namitbir Singh Walia"]
[WhiteFideId "7400730"]
[BlackFideId "35071068"]
[WhiteElo "2001"]
[BlackElo "2239"]
[Result "0-1"]
[Round "07"]
[TimeControl "180+2"]
[Date "2023.05.09"]
[WhiteClock "0:00:00"]
[BlackClock "0:00:44"]

1. Nf3 {[%clk 0:03:00]}  Nf6 {[%clk 0:02:59]} 2. c4 {[%clk 0:03:00]}  c5 {[%clk 0:02:51]} 3. g3 {[%clk 0:02:58]}  Nc6 {[%clk 0:02:50]} 4. Bg2 {[%clk 0:02:58]}  d5 {[%clk 0:02:51]} 5. cxd5 {[%clk 0:02:58]}  Nxd5 {[%clk 0:02:52]} 6. O-O {[%clk 0:02:58]}  e5 {[%clk 0:02:52]} 7. d3 {[%clk 0:02:49]}  Be7 {[%clk 0:02:51]} 8. Nc3 {[%clk 0:02:49]}  Be6 {[%clk 0:02:50]} 9. Bd2 {[%clk 0:02:23]}  O-O {[%clk 0:02:46]} 10. Rc1 {[%clk 0:02:06]}  h6 {[%clk 0:02:39]} 11. Nxd5 {[%clk 0:02:03]}  Bxd5 {[%clk 0:02:37]} 12. Qa4 {[%clk 0:02:00]}  Rc8 {[%clk 0:02:33]} 13. Be3 {[%clk 0:01:59]}  b6 {[%clk 0:02:30]} 14. Nd2 {[%clk 0:01:27]}  Bxg2 {[%clk 0:02:26]} 15. Kxg2 {[%clk 0:01:28]}  Qd5+ {[%clk 0:02:26]} 16. f3 {[%clk 0:01:11]}  Rfd8 {[%clk 0:02:24]} 17. a3 {[%clk 0:01:01]}  Rc7 {[%clk 0:02:04]} 18. Qc4 {[%clk 0:01:00]}  Nd4 {[%clk 0:01:50]} 19. Qxd5 {[%clk 0:00:39]}  Rxd5 {[%clk 0:01:51]} 20. Bxd4 {[%clk 0:00:39]}  exd4 {[%clk 0:01:51]} 21. f4 {[%clk 0:00:35]}  f5 {[%clk 0:01:37]} 22. b4 {[%clk 0:00:32]}  Rcd7 {[%clk 0:01:31]} 23. b5 {[%clk 0:00:30]}  Bf6 {[%clk 0:01:25]} 24. Nc4 {[%clk 0:00:28]}  Re7 {[%clk 0:01:24]} 25. Rc2 {[%clk 0:00:29]}  Rd8 {[%clk 0:01:22]} 26. a4 {[%clk 0:00:26]}  Re6 {[%clk 0:01:22]} 27. Ra1 {[%clk 0:00:25]}  Rde8 {[%clk 0:01:22]} 28. Kf3 {[%clk 0:00:25]}  Bd8 {[%clk 0:01:17]} 29. Kf2 {[%clk 0:00:24]}  Bc7 {[%clk 0:01:16]} 30. Kf3 {[%clk 0:00:24]}  g5 {[%clk 0:01:16]} 31. fxg5 {[%clk 0:00:23]}  hxg5 {[%clk 0:01:17]} 32. Rf1 {[%clk 0:00:20]}  Kg7 {[%clk 0:01:17]} 33. Rf2 {[%clk 0:00:20]}  Kg6 {[%clk 0:01:18]} 34. Kg2 {[%clk 0:00:21]}  g4 {[%clk 0:01:13]} 35. Ra2 {[%clk 0:00:20]}  Kg5 {[%clk 0:01:12]} 36. Rb2 {[%clk 0:00:20]}  Rh8 {[%clk 0:01:10]} 37. Rb1 {[%clk 0:00:19]}  f4 {[%clk 0:01:05]} 38. gxf4+ {[%clk 0:00:18]}  Bxf4 {[%clk 0:01:06]} 39. Rbf1 {[%clk 0:00:17]}  Rxh2+ {[%clk 0:01:04]} 40. Kg1 {[%clk 0:00:17]}  Rxe2 {[%clk 0:00:58]} 41. Rxh2 {[%clk 0:00:11]}  Bxh2+ {[%clk 0:00:57]} 42. Kh1 {[%clk 0:00:11]}  Bf4 {[%clk 0:00:55]} 43. a5 {[%clk 0:00:05]}  g3 {[%clk 0:00:52]} 44. Kg1 {[%clk 0:00:04]}  Kg4 {[%clk 0:00:44]} 45. axb6 {[%clk 0:00:04]}  axb6 {[%clk 0:00:44]} 46. Nxb6 {[%clk 0:00:03]}  Be3+ {[%clk 0:00:44]} 47. Kh1 {[%clk 0:00:00]}  g2+ {[%clk 0:00:44]} 0-1


[Site "https://www.chess.com"]

[Event "Titled Tuesday Blitz May 9 Early 2023"]
[White "Vlassov, Nikolai"]
[Black "Makhmudov, Shukhrat"]
[WhiteFideId "4103360"]
[BlackFideId "14200775"]
[WhiteElo "2324"]
[BlackElo "2135"]
[Result "1-0"]
[Round "07"]
[TimeControl "180+2"]
[Date "2023.05.09"]
[WhiteClock "0:00:31"]
[BlackClock "0:00:02"]

1. e4 {[%clk 0:03:00]}  e5 {[%clk 0:02:58]} 2. Bc4 {[%clk 0:03:00]}  Nf6 {[%clk 0:02:58]} 3. d3 {[%clk 0:02:59]}  Bc5 {[%clk 0:02:57]} 4. Nf3 {[%clk 0:02:59]}  Nc6 {[%clk 0:02:55]} 5. Bg5 {[%clk 0:02:59]}  Bb6 {[%clk 0:02:54]} 6. Nc3 {[%clk 0:02:58]}  h6 {[%clk 0:02:53]} 7. Bh4 {[%clk 0:02:58]}  d6 {[%clk 0:02:53]} 8. Nd5 {[%clk 0:02:55]}  g5 {[%clk 0:02:50]} 9. Nxg5 {[%clk 0:02:55]}  Nxd5 {[%clk 0:02:10]} 10. Qh5 {[%clk 0:02:54]}  Bxf2+ {[%clk 0:01:55]} 11. Bxf2 {[%clk 0:02:42]}  Qxg5 {[%clk 0:01:54]} 12. Qxg5 {[%clk 0:02:29]}  hxg5 {[%clk 0:01:51]} 13. Bxd5 {[%clk 0:02:30]}  g4 {[%clk 0:01:40]} 14. O-O {[%clk 0:02:28]}  Be6 {[%clk 0:01:38]} 15. Bxe6 {[%clk 0:02:23]}  fxe6 {[%clk 0:01:38]} 16. Be3 {[%clk 0:02:23]}  Nb4 {[%clk 0:01:23]} 17. Rf2 {[%clk 0:02:20]}  Rf8 {[%clk 0:01:14]} 18. a3 {[%clk 0:01:47]}  Rxf2 {[%clk 0:01:10]} 19. Bxf2 {[%clk 0:01:47]}  Nc6 {[%clk 0:00:57]} 20. Rf1 {[%clk 0:01:46]}  Kf7 {[%clk 0:00:51]} 21. Bxa7+ {[%clk 0:01:40]}  Kg7 {[%clk 0:00:51]} 22. Be3 {[%clk 0:01:40]}  Kg6 {[%clk 0:00:43]} 23. h3 {[%clk 0:01:15]}  gxh3 {[%clk 0:00:40]} 24. gxh3 {[%clk 0:01:16]}  Nd4 {[%clk 0:00:31]} 25. Bxd4 {[%clk 0:01:15]}  exd4 {[%clk 0:00:31]} 26. Kg2 {[%clk 0:01:16]}  Ra6 {[%clk 0:00:29]} 27. Kg3 {[%clk 0:01:08]}  Ra5 {[%clk 0:00:27]} 28. h4 {[%clk 0:01:06]}  Rc5 {[%clk 0:00:27]} 29. Rf2 {[%clk 0:01:06]}  b5 {[%clk 0:00:25]} 30. Kg4 {[%clk 0:01:03]}  Rc6 {[%clk 0:00:19]} 31. h5+ {[%clk 0:01:00]}  Kg7 {[%clk 0:00:19]} 32. Rh2 {[%clk 0:00:49]}  Rc5 {[%clk 0:00:17]} 33. h6+ {[%clk 0:00:45]}  Kh7 {[%clk 0:00:17]} 34. b4 {[%clk 0:00:38]}  Rc3 {[%clk 0:00:14]} 35. Kg5 {[%clk 0:00:37]}  Rxa3 {[%clk 0:00:13]} 36. Rf2 {[%clk 0:00:37]}  Ra1 {[%clk 0:00:10]} 37. Rf7+ {[%clk 0:00:36]}  Kg8 {[%clk 0:00:09]} 38. Rxc7 {[%clk 0:00:35]}  Rf1 {[%clk 0:00:09]} 39. Kg6 {[%clk 0:00:34]}  Rg1+ {[%clk 0:00:08]} 40. Kf6 {[%clk 0:00:34]}  e5 {[%clk 0:00:02]} 41. Rg7+ {[%clk 0:00:31]} 1-0


[Site "https://www.chess.com"]

[Event "Titled Tuesday Blitz May 9 Early 2023"]
[White "Zampronha, Wladimir Camilo"]
[Black "Hossain, Enamul"]
[WhiteFideId "2103087"]
[BlackFideId "10200649"]
[WhiteElo "2176"]
[BlackElo "2433"]
[Result "0-1"]
[Round "07"]
[TimeControl "180+2"]
[Date "2023.05.09"]
[WhiteClock "0:00:00"]
[BlackClock "0:01:12"]

1. e4 {[%clk 0:03:00]}  c5 {[%clk 0:02:59]} 2. Nf3 {[%clk 0:03:01]}  Nc6 {[%clk 0:02:57]} 3. d4 {[%clk 0:03:01]}  cxd4 {[%clk 0:02:57]} 4. Nxd4 {[%clk 0:03:02]}  Nf6 {[%clk 0:02:57]} 5. Nc3 {[%clk 0:03:02]}  e5 {[%clk 0:02:58]} 6. Ndb5 {[%clk 0:03:02]}  d6 {[%clk 0:02:58]} 7. Bg5 {[%clk 0:03:02]}  a6 {[%clk 0:02:57]} 8. Na3 {[%clk 0:03:02]}  b5 {[%clk 0:02:58]} 9. Nd5 {[%clk 0:03:02]}  Be7 {[%clk 0:02:57]} 10. Bxf6 {[%clk 0:03:03]}  Bxf6 {[%clk 0:02:58]} 11. c3 {[%clk 0:03:04]}  Rb8 {[%clk 0:02:56]} 12. Nc2 {[%clk 0:03:03]}  Bg5 {[%clk 0:02:55]} 13. Bd3 {[%clk 0:02:55]}  O-O {[%clk 0:02:46]} 14. O-O {[%clk 0:02:56]}  Be6 {[%clk 0:02:32]} 15. Ncb4 {[%clk 0:02:45]}  Qc8 {[%clk 0:02:24]} 16. a4 {[%clk 0:02:25]}  Nxb4 {[%clk 0:02:22]} 17. Nxb4 {[%clk 0:02:12]}  a5 {[%clk 0:02:21]} 18. Nd5 {[%clk 0:02:12]}  bxa4 {[%clk 0:02:15]} 19. Rxa4 {[%clk 0:01:57]}  Bxd5 {[%clk 0:02:10]} 20. exd5 {[%clk 0:01:57]}  Rxb2 {[%clk 0:02:10]} 21. Rxa5 {[%clk 0:01:36]}  Qxc3 {[%clk 0:02:06]} 22. Qa1 {[%clk 0:00:38]}  Rfb8 {[%clk 0:01:50]} 23. Rd1 {[%clk 0:00:38]}  g6 {[%clk 0:01:41]} 24. Ra2 {[%clk 0:00:36]}  Qd4 {[%clk 0:01:32]} 25. Rxb2 {[%clk 0:00:08]}  Rxb2 {[%clk 0:01:29]} 26. Rf1 {[%clk 0:00:05]}  Bd8 {[%clk 0:01:18]} 27. Qa6 {[%clk 0:00:05]}  Bb6 {[%clk 0:01:15]} 28. Kh1 {[%clk 0:00:00]}  Rxf2 {[%clk 0:01:12]} 0-1


[Site "https://www.chess.com"]

[Event "Titled Tuesday Blitz May 9 Early 2023"]
[White "Antonio, Jorge Carlos"]
[Black "Liu, Casper"]
[WhiteFideId "113190"]
[BlackFideId "1454153"]
[WhiteElo "2247"]
[BlackElo "2221"]
[Result "0-1"]
[Round "07"]
[TimeControl "180+2"]
[Date "2023.05.09"]
[WhiteClock "0:00:28"]
[BlackClock "0:00:55"]

1. d4 {[%clk 0:03:00]}  c5 {[%clk 0:02:59]} 2. e3 {[%clk 0:03:00]}  cxd4 {[%clk 0:02:59]} 3. exd4 {[%clk 0:03:00]}  d5 {[%clk 0:03:00]} 4. Nf3 {[%clk 0:03:00]}  Nf6 {[%clk 0:03:00]} 5. Bd3 {[%clk 0:03:00]}  Bg4 {[%clk 0:03:01]} 6. c3 {[%clk 0:03:00]}  e6 {[%clk 0:03:01]} 7. Bf4 {[%clk 0:03:00]}  Bd6 {[%clk 0:03:01]} 8. Bxd6 {[%clk 0:02:59]}  Qxd6 {[%clk 0:03:02]} 9. O-O {[%clk 0:02:59]}  O-O {[%clk 0:03:03]} 10. Re1 {[%clk 0:02:59]}  Nc6 {[%clk 0:03:02]} 11. Nbd2 {[%clk 0:02:58]}  e5 {[%clk 0:02:58]} 12. dxe5 {[%clk 0:02:57]}  Nxe5 {[%clk 0:02:58]} 13. Be2 {[%clk 0:02:56]}  Ng6 {[%clk 0:02:43]} 14. h3 {[%clk 0:02:53]}  Bd7 {[%clk 0:02:40]} 15. Nd4 {[%clk 0:02:52]}  Rfe8 {[%clk 0:02:38]} 16. N2f3 {[%clk 0:02:48]}  Ne4 {[%clk 0:02:37]} 17. Bd3 {[%clk 0:02:47]}  Nf4 {[%clk 0:02:36]} 18. Bf1 {[%clk 0:02:46]}  g5 {[%clk 0:02:15]} 19. Nh2 {[%clk 0:02:28]}  h5 {[%clk 0:02:05]} 20. f3 {[%clk 0:02:28]}  Ng3 {[%clk 0:02:00]} 21. Rxe8+ {[%clk 0:02:26]}  Rxe8 {[%clk 0:02:01]} 22. Qd2 {[%clk 0:02:20]}  Qe5 {[%clk 0:01:52]} 23. Qf2 {[%clk 0:02:09]}  Nxf1 {[%clk 0:01:27]} 24. Nxf1 {[%clk 0:01:53]}  Bxh3 {[%clk 0:01:26]} 25. Nc2 {[%clk 0:01:11]}  Nxg2 {[%clk 0:01:12]} 26. Qd4 {[%clk 0:00:52]}  Nh4 {[%clk 0:01:06]} 27. Qxe5 {[%clk 0:00:51]}  Nxf3+ {[%clk 0:01:05]} 28. Kh1 {[%clk 0:00:48]}  Rxe5 {[%clk 0:01:02]} 29. Nfe3 {[%clk 0:00:36]}  f5 {[%clk 0:01:01]} 30. Rd1 {[%clk 0:00:35]}  f4 {[%clk 0:01:00]} 31. Nxd5 {[%clk 0:00:35]}  Re2 {[%clk 0:00:58]} 32. Nd4 {[%clk 0:00:28]}  Bg2# {[%clk 0:00:55]} 0-1


[Site "https://www.chess.com"]

[Event "Titled Tuesday Blitz May 9 Early 2023"]
[White "Martic, Ivan"]
[Black "babbilator"]
[WhiteFideId "929301"]
[WhiteElo "2360"]
[BlackElo "2280"]
[Result "0-1"]
[Round "07"]
[TimeControl "180+2"]
[Date "2023.05.09"]
[WhiteClock "0:01:09"]
[BlackClock "0:00:52"]

1. d4 {[%clk 0:03:00]}  Nf6 {[%clk 0:02:58]} 2. Bg5 {[%clk 0:03:00]}  e6 {[%clk 0:02:55]} 3. e4 {[%clk 0:02:58]}  h6 {[%clk 0:02:47]} 4. Bxf6 {[%clk 0:02:59]}  Qxf6 {[%clk 0:02:47]} 5. c3 {[%clk 0:02:59]}  d5 {[%clk 0:02:43]} 6. e5 {[%clk 0:02:59]}  Qd8 {[%clk 0:02:38]} 7. Nf3 {[%clk 0:03:00]}  c5 {[%clk 0:02:35]} 8. dxc5 {[%clk 0:02:56]}  Nd7 {[%clk 0:02:28]} 9. b4 {[%clk 0:02:48]}  Qc7 {[%clk 0:02:17]} 10. Bb5 {[%clk 0:02:47]}  Be7 {[%clk 0:02:15]} 11. O-O {[%clk 0:02:46]}  O-O {[%clk 0:02:12]} 12. Re1 {[%clk 0:02:46]}  b6 {[%clk 0:02:09]} 13. c6 {[%clk 0:02:31]}  Nb8 {[%clk 0:02:09]} 14. Qa4 {[%clk 0:02:23]}  a6 {[%clk 0:02:09]} 15. Nd4 {[%clk 0:02:18]}  f6 {[%clk 0:02:01]} 16. exf6 {[%clk 0:02:15]}  Rxf6 {[%clk 0:01:56]} 17. Nf3 {[%clk 0:01:44]}  Ra7 {[%clk 0:01:51]} 18. Bd3 {[%clk 0:01:41]}  Nxc6 {[%clk 0:01:46]} 19. Qb3 {[%clk 0:01:35]}  Rxf3 {[%clk 0:01:33]} 20. gxf3 {[%clk 0:01:36]}  Qf4 {[%clk 0:01:33]} 21. Qc2 {[%clk 0:01:22]}  Bd6 {[%clk 0:01:28]} 22. Nd2 {[%clk 0:01:22]}  Rc7 {[%clk 0:01:09]} 23. a3 {[%clk 0:01:21]}  Qxh2+ {[%clk 0:01:06]} 24. Kf1 {[%clk 0:01:21]}  Nd4 {[%clk 0:00:54]} 25. Qb2 {[%clk 0:01:09]}  Qh1# {[%clk 0:00:52]} 0-1


[Site "https://www.chess.com"]